bitfinex-derivatives/quotes_SOLF0:USTF0_20250428
["timestamp","ask_amount","ask_price","bid_price","bid_amount"]
[1745838260882,8.62365127,152.23,152.15,6.5699]
[1745838261087,4.0684,152.23,152.15,6.5699]
[1745838261389,6.5691,152.18,152.14,6.5703]
[1745838261681,4.0684,152.23,152.07,1.9581]
[1745838261894,6.5701,152.15,152.07,1.9581]
[1745838262287,6.5708,152.14,152.07,1.9581]
[1745838262993,6.5708,152.14,152.1,6.572]
[1745838263686,6.571,152.13,152.07,1.9581]
[1745838263890,32.8543,152.22,152.07,20.8481]
[1745838264088,4.55436913,152.21,152.07,20.8481]
[1745838264282,4.55436913,152.2,152.07,20.8481]
[1745838264487,4.55436913,152.19,152.11,6.5718]
[1745838264685,32.8543,152.22,152.11,6.5718]
[1745838264889,4.55521918,152.21,152.11,6.5718]
[1745838265083,4.55521918,152.2,152.07,20.8481]
[1745838265393,32.8543,152.22,152.12,6.5713]
[1745838265585,4.55603848,152.21,152.12,6.5713]
[1745838265794,4.55603848,152.2,152.07,20.8481]
[1745838265995,6.5702,152.15,152.07,20.8481]
[1745838266291,13.1343,152.22,152.07,20.8481]
[1745838266492,4.55642943,152.21,152.13,6.571]
[1745838266691,6.5699,152.16,152.13,6.571]
[1745838266887,13.1343,152.22,152.12,6.5712]
[1745838267092,6.5702,152.15,152.12,6.5712]
[1745838267291,13.1343,152.22,152.07,20.8481]
[1745838267592,6.57,152.16,152.13,6.5709]
[1745838268389,6.5695,152.17,152.14,6.5705]
[1745838268601,4.0684,152.23,152.08,13.1463]
[1745838268794,4.55657209,152.22,152.09,3.9098]
[1745838268997,6.5686,152.19,152.09,3.9098]
[1745838269794,4.0684,152.23,152.09,3.9098]
[1745838270093,4.55612348,152.22,152.09,3.9098]
[1745838270395,6.5684,152.19,152.15,6.5698]
[1745838270689,6.5684,152.19,152.09,3.9098]
[1745838271591,6.5684,152.19,152.16,6.5696]
[1745838272399,6.5681,152.2,152.09,3.9098]
[1745838272598,4.0684,152.23,152.09,3.9098]
[1745838272799,6.5686,152.19,152.15,6.5697]
[1745838272995,13.1311,152.26,152.09,3.9098]
[1745838273203,4.55510989,152.25,152.1,473.0]
[1745838273396,3.9125,152.29,152.1,473.0]
[1745838273700,6.5669,152.23,152.2,6.5677]
[1745838274091,3.9125,152.29,152.2,6.5677]
[1745838274296,6.5665,152.24,152.2,6.5676]
[1745838275303,3.9125,152.29,152.2,6.5676]
[1745838275503,4.55584172,152.28,152.2,6.5676]
[1745838275698,4.55584172,152.27,152.2,6.5676]
[1745838276001,4.55584172,152.26,152.13,2.0797]
[1745838276200,4.55633668,152.25,152.13,2.0797]
[1745838276403,3.9125,152.29,152.19,6.5681]
[1745838276601,4.55633668,152.28,152.19,6.5681]
[1745838276802,4.55633668,152.27,152.2,6.5679]
[1745838277002,6.5671,152.23,152.2,6.5679]
[1745838277203,3.9125,152.29,152.2,6.5679]
[1745838277405,4.55706012,152.28,152.2,6.5679]
[1745838277605,4.55706012,152.27,152.14,13.1408]
[1745838277811,4.55706012,152.26,152.15,4.0358]
[1745838278000,4.55706012,152.25,152.15,4.0358]
[1745838278197,6.5665,152.24,152.21,6.5671]
[1745838278398,6.5665,152.24,152.15,4.0358]
[1745838278710,3.9125,152.29,152.22,6.567]
[1745838278711,6.5659,152.25,152.22,6.567]
[1745838278900,3.9125,152.29,152.15,4.0358]
[1745838279107,4.55852826,152.28,152.15,4.0358]
[1745838279405,4.55852826,152.27,152.15,4.0358]
[1745838279607,505.8442,152.34,152.15,4.0358]
[1745838279809,8.59050367,152.33,152.15,4.0358]
[1745838280107,6.5647,152.28,152.24,6.566]
[1745838280306,4.0333,152.33,152.17,13.1385]
[1745838280508,6.564,152.3,152.17,13.1385]
[1745838280706,32.8458,152.32,152.13,2.0797]
[1745838280915,19.72,152.3,152.14,1.8807]
[1745838281113,6.567,152.23,152.18,6.5688]
[1745838281305,19.72,152.3,152.14,1.8807]
[1745838281505,6.5682,152.2,152.15,6.57]
[1745838281709,13.1293,152.28,152.14,1.8807]
[1745838282008,4.55803184,152.27,152.14,1.8807]
[1745838282210,6.5687,152.19,152.15,6.57]
[1745838283311,6.5681,152.2,152.16,6.5696]
[1745838284111,6.5684,152.19,152.16,6.5696]
[1745838284410,6.5684,152.19,152.14,1.8807]
[1745838284411,6.5684,152.19,152.15,6.5699]
[1745838285518,6.5684,152.19,152.14,1.8807]
[1745838285912,6.5684,152.19,152.15,6.5697]
[1745838286414,6.5689,152.18,152.15,6.5697]
[1745838287112,6.5686,152.19,152.15,6.5697]
[1745838287407,3.7871,152.27,152.15,6.5697]
[1745838287712,6.5686,152.19,152.15,6.5697]
[1745838288410,6.5691,152.18,152.14,1.8807]
[1745838288912,6.5685,152.19,152.15,6.5698]
[1745838289116,3.7871,152.27,152.15,6.5698]
[1745838289410,4.57454198,152.26,152.15,6.5698]
[1745838289626,4.57454198,152.25,152.15,6.5698]
[1745838289914,4.57454198,152.24,152.16,6.5695]
[1745838290109,4.57454198,152.23,152.16,6.5695]
[1745838290310,4.57454198,152.22,152.15,6.5697]
[1745838290506,4.57836943,152.21,152.14,1.8807]
[1745838290706,11.14636943,152.2,152.14,1.8807]
[1745838290914,6.568,152.2,152.17,6.569]
[1745838291414,3.7871,152.27,152.19,6.5684]
[1745838291613,4.58065075,152.26,152.14,1.8807]
[1745838291910,6.567,152.23,152.2,6.5677]
[1745838292106,3.7871,152.27,152.14,1.8807]
[1745838292306,4.58144564,152.26,152.14,1.8807]
[1745838292514,6.5663,152.24,152.2,6.5677]
[1745838292715,3.7871,152.27,152.2,6.5677]
[1745838292915,6.5667,152.24,152.2,6.5677]
[1745838293116,4.58305989,152.23,152.2,6.5677]
[1745838293317,3.7871,152.27,152.2,6.5677]
[1745838293614,4.58306541,152.26,152.2,6.5677]
[1745838293814,4.58306541,152.25,152.2,6.5677]
[1745838294018,6.5667,152.23,152.2,6.5677]
[1745838294516,3.7871,152.27,152.19,6.5681]
[1745838294717,6.5671,152.23,152.19,6.5681]
[1745838295113,6.5671,152.23,152.2,6.5679]
[1745838296019,6.5671,152.23,152.19,6.5681]
[1745838296521,3.7871,152.27,152.19,6.5681]
[1745838296819,4.58491093,152.26,152.19,6.5681]
[1745838297020,6.567,152.23,152.19,6.5681]
[1745838297315,4.58543049,152.22,152.14,1.8807]
[1745838297513,4.58588519,152.21,152.14,1.8807]
[1745838297711,6.569,152.18,152.13,2.0797]
[1745838297914,6.569,152.18,152.14,6.5703]
[1745838298219,6.5693,152.17,152.14,6.5703]
[1745838298520,32.8514,152.26,152.15,6.5701]
[1745838298721,4.58802335,152.25,152.15,6.5701]
[1745838298920,6.5686,152.19,152.15,6.5701]
[1745838299424,3.7871,152.27,152.13,2.0797]
[1745838299620,4.58825266,152.26,152.13,2.0797]
[1745838299819,4.58825266,152.25,152.13,2.0797]
[1745838300016,4.58825266,152.24,152.13,2.0797]
[1745838300222,4.58825266,152.23,152.13,2.0797]
[1745838300422,4.58817158,152.22,152.16,6.5694]
[1745838300720,4.58817158,152.21,152.16,6.5694]
[1745838300917,4.58817158,152.2,152.16,6.5694]
[1745838301118,11.15657158,152.19,152.16,6.5694]
[1745838301311,19.72,152.26,152.15,6.5699]
[1745838301511,4.58816068,152.25,152.13,2.0797]
[1745838301721,4.58823445,152.24,152.13,2.0797]
[1745838301920,19.72,152.26,152.13,2.0797]
[1745838301921,6.5686,152.19,152.16,6.5694]
[1745838302122,6.5686,152.19,152.13,2.0797]
[1745838302322,6.5681,152.2,152.17,6.569]
[1745838302619,4.5894844,152.19,152.17,6.569]
[1745838302820,6.5681,152.2,152.17,6.569]
[1745838303022,4.58947772,152.19,152.17,6.569]
[1745838303222,6.5681,152.2,152.17,6.569]
[1745838303518,4.58956502,152.19,152.18,6.5688]
[1745838303715,4.58960576,152.19,152.13,2.0797]
[1745838303919,16.9176,152.27,152.13,2.0797]
[1745838304223,4.58935674,152.26,152.19,6.5681]
[1745838304425,4.58935674,152.25,152.13,2.0797]
[1745838304624,3.7871,152.27,152.13,2.0797]
[1745838304625,11.15585674,152.24,152.21,6.5674]
[1745838304824,4.58935674,152.23,152.14,1.9206]
[1745838305026,4.58935674,152.22,152.14,1.9206]
[1745838305322,4.58935674,152.21,152.14,1.9206]
[1745838305521,3.7871,152.27,152.14,1.9206]
[1745838305721,6.5662,152.25,152.21,6.5673]
[1745838306026,4.58881018,152.24,152.21,6.5673]
[1745838306225,4.58881018,152.23,152.21,6.5673]
[1745838306425,4.58881018,152.22,152.21,6.5673]
[1745838309627,3.7871,152.27,152.24,6.566]
[1745838309830,4.59055693,152.26,152.24,6.566]
[1745838310031,4.59055693,152.25,152.24,6.566]
[1745838310230,3.954,152.32,152.14,1.9206]
[1745838310531,4.58936989,152.31,152.14,1.9206]
[1745838310723,11.15336989,152.3,152.19,13.1368]
[1745838311029,4.58936989,152.29,152.26,6.565]
[1745838311330,4.58936989,152.28,152.25,6.5657]
[1745838311530,4.58936989,152.27,152.25,6.5657]
[1745838311731,6.5642,152.29,152.2,5.7776]
[1745838311933,4.46536779,152.28,152.2,5.7776]
[1745838312129,4.46619029,152.27,152.2,5.7776]
[1745838312328,6.5642,152.29,152.2,5.7776]
[1745838312628,4.46468585,152.28,152.2,5.7776]
[1745838312828,6.5638,152.3,152.2,5.7776]
[1745838313030,4.46453486,152.29,152.2,5.7776]
[1745838313327,3.954,152.32,152.21,13.1348]
[1745838313521,4.46277476,152.31,152.21,13.1348]
[1745838313723,4.46277476,152.3,152.21,13.1348]
[1745838313927,6.5622,152.34,152.3,6.5635]
[1745838314229,4.4627597,152.33,152.22,13.1342]
[1745838314430,4.4627597,152.32,152.2,478.5176]
[1745838314633,3.8665,152.38,152.23,13.133]
[1745838314829,4.45943165,152.37,152.23,13.133]
[1745838315030,6.5626,152.33,152.23,13.133]
[1745838315331,4.45716547,152.32,152.23,13.133]
[1745838315533,3.8665,152.38,152.23,13.133]
[1745838315734,6.5628,152.33,152.23,13.133]
[1745838316031,4.45718907,152.32,152.23,13.133]
[1745838316230,6.5628,152.33,152.23,13.133]
[1745838316531,4.45509446,152.32,152.29,6.5638]
[1745838316732,6.5628,152.33,152.29,6.5638]
[1745838316932,4.45508895,152.32,152.29,6.5638]
[1745838317128,6.5628,152.33,152.3,6.5636]
[1745838317330,6.5621,152.34,152.3,6.5636]
[1745838317530,4.45331767,152.33,152.3,6.5636]
[1745838317827,6.5621,152.34,152.3,6.5636]
[1745838318134,3.8665,152.38,152.23,13.133]
[1745838318135,4.45334527,152.33,152.23,13.133]
[1745838318427,3.8665,152.38,152.23,13.133]
[1745838318631,4.45166068,152.37,152.3,6.5634]
[1745838318932,6.5622,152.34,152.3,6.5634]
[1745838319132,4.45166068,152.33,152.3,6.5634]
[1745838319332,6.5622,152.34,152.3,6.5634]
[1745838319537,3.8665,152.38,152.23,13.133]
[1745838319732,4.44933459,152.37,152.23,13.133]
[1745838319931,4.44933459,152.36,152.23,13.133]
[1745838320129,4.44933459,152.35,152.32,6.5628]
[1745838320330,6.5612,152.36,152.32,6.5628]
[1745838320732,6.5616,152.35,152.32,6.5628]
[1745838320933,3.8665,152.38,152.32,6.5628]
[1745838321231,4.4471321,152.37,152.32,6.5628]
[1745838321431,3.8665,152.38,152.32,6.5628]
[1745838321731,4.44505894,152.37,152.33,6.5623]
[1745838321931,4.44505894,152.36,152.33,6.5623]
[1745838322131,6.5613,152.36,152.33,6.5623]
[1745838323337,6.5616,152.35,152.33,6.5623]
[1745838323530,6.5616,152.35,152.32,6.5626]
[1745838323834,3.8665,152.38,152.24,13.1322]
[1745838324234,6.5613,152.36,152.33,6.5621]
[1745838324539,3.8665,152.38,152.21,6.91]
[1745838324730,472.74,152.43,152.21,6.91]
[1745838324932,28.08252035,152.42,152.21,6.91]
[1745838325131,4.43862035,152.41,152.23,13.1333]
[1745838325332,4.43862035,152.4,152.23,13.1333]
[1745838325532,4.43862035,152.39,152.23,13.1333]
[1745838325732,4.43862035,152.38,152.23,13.1333]
[1745838325932,4.43862035,152.37,152.3,6.5632]
[1745838326137,23.6439,152.42,152.3,6.5632]
[1745838326336,24.15685702,152.41,152.23,13.1333]
[1745838326541,4.43685702,152.4,152.21,6.91]
[1745838326839,4.43685702,152.39,152.21,6.91]
[1745838327038,6.5619,152.35,152.31,6.563]
[1745838327439,6.5619,152.35,152.26,5.8757]
[1745838327636,6.5619,152.35,152.31,6.5629]
[1745838327940,6.5619,152.35,152.26,5.8757]
[1745838328240,6.5614,152.36,152.26,5.8757]
[1745838328439,23.6439,152.42,152.26,5.8757]
[1745838328741,6.5613,152.36,152.32,6.5624]
[1745838329037,23.6439,152.42,152.26,5.8757]
[1745838329239,6.5615,152.35,152.26,5.8757]
[1745838329941,6.562,152.34,152.26,5.8757]
[1745838330339,23.6439,152.42,152.26,5.8757]
[1745838330545,6.5626,152.33,152.29,6.5638]
[1745838330841,19.72,152.41,152.26,5.8757]
[1745838331035,4.43294314,152.4,152.26,5.8757]
[1745838331235,4.43294314,152.39,152.26,5.8757]
[1745838331436,4.43294314,152.38,152.26,5.8757]
[1745838331740,6.5625,152.33,152.29,6.5638]
[1745838331938,6.5625,152.33,152.26,5.8757]
[1745838332941,6.5621,152.34,152.26,5.8757]
[1745838333141,19.72,152.39,152.21,20.0449]
[1745838333343,24.15464303,152.38,152.28,6.5643]
[1745838333545,6.5631,152.32,152.28,6.5643]
[1745838334043,6.5626,152.33,152.3,6.5636]
[1745838334344,3.9114,152.36,152.22,2.0597]
[1745838335147,6.5624,152.33,152.29,6.5637]
[1745838335445,3.9114,152.36,152.29,6.5637]
[1745838335644,6.5626,152.33,152.3,6.5636]
[1745838336345,6.5628,152.32,152.29,6.5639]
[1745838336845,6.5625,152.33,152.22,2.0597]
[1745838338250,6.5628,152.32,152.29,6.5638]
[1745838338454,6.5628,152.32,152.22,2.0597]
[1745838339653,6.5628,152.32,152.29,6.5638]
[1745838339855,3.9114,152.36,152.23,13.1332]
[1745838340554,6.5622,152.34,152.23,13.1332]
[1745838340757,3.9114,152.36,152.32,6.5625]
[1745838341259,6.5616,152.35,152.32,6.5625]
[1745838341757,8.5512,152.36,152.32,6.5625]
[1745838341955,1.9898,152.36,152.32,6.5625]
[1745838342255,1.9898,152.36,152.31,6.563]
[1745838342565,1.9898,152.36,152.24,13.1322]
[1745838342857,8.5513,152.36,152.32,6.5625]
[1745838343659,8.5513,152.36,152.33,6.5623]
[1745838344362,6.5616,152.35,152.33,6.5623]
[1745838344557,6.5616,152.35,152.32,6.5626]
[1745838344859,6.5616,152.35,152.26,4.0186]
[1745838345357,1.9898,152.36,152.22,2.0597]
[1745838345564,1.9518,152.34,152.25,6.5655]
[1745838345962,6.5646,152.28,152.22,8.9697]
[1745838346357,1.9518,152.34,152.22,6.91]
[1745838346358,6.5661,152.25,152.22,6.91]
[1745838346659,19.72,152.32,152.22,13.4768]
[1745838346855,4.44483717,152.31,152.22,13.4768]
[1745838347052,6.5659,152.25,152.22,13.4768]
[1745838347251,19.72,152.32,152.23,6.5666]
[1745838347453,4.44985572,152.31,152.23,6.5666]
[1745838347652,6.36885572,152.3,152.23,6.5666]
[1745838347859,4.44985572,152.29,152.22,6.91]
[1745838348059,4.44985572,152.28,152.22,6.91]
[1745838348360,1.919,152.3,152.26,6.5651]
[1745838348561,11.01627866,152.29,152.26,6.5651]
[1745838348757,1.919,152.3,152.22,6.91]
[1745838348960,1.9518,152.34,152.22,6.91]
[1745838349154,6.5632,152.31,152.22,6.91]
[1745838349357,1.9518,152.34,152.22,6.91]
[1745838349563,4.4531162,152.33,152.22,6.91]
[1745838349858,4.4531162,152.32,152.22,6.91]
[1745838350059,1.9518,152.34,152.23,1.9783]
[1745838350260,4.45267688,152.33,152.23,1.9783]
[1745838350456,4.45498785,152.32,152.29,6.564]
[1745838350659,1.9518,152.34,152.29,6.564]
[1745838350965,6.563,152.32,152.29,6.564]
[1745838352259,4.46023019,152.31,152.29,6.564]
[1745838352563,6.5624,152.33,152.3,6.5636]
[1745838352758,4.46052229,152.32,152.3,6.5636]
[1745838352964,1.9518,152.34,152.23,1.9783]
[1745838353165,11.02303387,152.33,152.23,1.9783]
[1745838353366,4.46043387,152.32,152.3,6.5634]
[1745838353565,4.46043387,152.31,152.3,6.5634]
[1745838353965,6.5626,152.33,152.3,6.5634]
[1745838354166,4.46303815,152.32,152.31,6.5632]
[1745838354466,4.46303815,152.32,152.23,1.9783]
[1745838354666,4.46303815,152.31,152.3,6.5634]
[1745838356462,4.46303815,152.31,152.29,6.5639]
[1745838356760,1.9518,152.34,152.29,6.5639]
[1745838356962,6.5629,152.32,152.29,6.5639]
[1745838357167,1.919,152.37,152.24,13.1323]
[1745838357358,6.5618,152.35,152.24,13.1323]
[1745838357557,4.46725957,152.34,152.24,13.1323]
[1745838357764,4.46725957,152.33,152.24,13.1323]
[1745838357963,8.4797,152.37,152.25,13.1314]
[1745838358263,4.46788335,152.36,152.26,4.1197]
[1745838358558,4.46788335,152.35,152.26,4.1197]
[1745838358762,6.5604,152.38,152.34,6.5617]
[1745838359066,4.46758748,152.37,152.26,4.1197]
[1745838359262,4.46758748,152.36,152.33,6.5621]
[1745838359568,4.46758748,152.35,152.26,4.1197]
[1745838359869,6.5613,152.36,152.32,6.5624]
[1745838360066,4.46701536,152.35,152.32,6.5624]
[1745838360265,2.0279,152.39,152.26,4.1197]
[1745838360465,6.5613,152.36,152.33,6.5622]
[1745838360765,4.46677853,152.35,152.26,4.1197]
[1745838360966,6.5608,152.37,152.26,4.1197]
[1745838361160,4.46684252,152.36,152.26,4.1197]
[1745838361363,4.46684252,152.35,152.26,4.1197]
[1745838361557,2.0279,152.39,152.26,4.1197]
[1745838361761,4.46661817,152.38,152.26,4.1197]
[1745838361961,4.46661817,152.37,152.26,4.1197]
[1745838362167,4.46626803,152.36,152.26,4.1197]
[1745838362367,4.46626803,152.35,152.26,4.1197]
[1745838362664,6.5607,152.37,152.26,4.1197]
[1745838362868,4.46578634,152.36,152.26,4.1197]
[1745838363164,4.46578634,152.35,152.34,6.5618]
[1745838363467,2.0279,152.39,152.26,4.1197]
[1745838363667,4.46428178,152.38,152.26,4.1197]
[1745838363867,4.46428178,152.37,152.28,13.1289]
[1745838364167,6.5594,152.4,152.29,2.0249]
[1745838364368,4.46416996,152.39,152.36,6.5609]
[1745838364571,4.46416996,152.38,152.36,6.5609]
[1745838364877,6.559,152.41,152.29,2.0249]
[1745838365170,4.46308612,152.4,152.29,2.0249]
[1745838365368,1.9836,152.44,152.3,472.46]
[1745838365568,4.46110483,152.43,152.3,472.46]
[1745838365766,6.5591,152.41,152.31,13.1263]
[1745838365965,4.46110483,152.4,152.36,6.5607]
[1745838366166,4.46110483,152.39,152.36,6.5607]
[1745838366467,4.46026184,152.38,152.35,6.5614]
[1745838366663,1.9836,152.44,152.3,472.46]
[1745838366864,6.5596,152.4,152.3,472.46]
[1745838367065,4.46028047,152.39,152.36,6.5609]
[1745838367265,4.46028047,152.38,152.3,472.46]
[1745838367475,6.5596,152.4,152.3,472.46]
[1745838367770,4.45938084,152.39,152.3,472.46]
[1745838367970,4.45938084,152.38,152.36,6.5608]
[1745838368166,6.5596,152.4,152.36,6.5608]
[1745838368367,11.019337,152.39,152.36,6.5608]
[1745838368567,1.9836,152.44,152.3,472.46]
[1745838368770,4.45818274,152.43,152.3,472.46]
[1745838368970,6.56,152.39,152.3,472.46]
[1745838369170,6.56,152.39,152.35,6.5613]
[1745838369368,6.5574,152.45,152.3,472.46]
[1745838369563,4.45587263,152.44,152.3,472.46]
[1745838369770,4.45646469,152.43,152.31,13.1258]
[1745838370073,11.01496469,152.42,152.37,6.5603]
[1745838370270,19.72,152.47,152.32,3.9025]
[1745838370465,6.5591,152.41,152.32,3.9025]
[1745838370669,6.5591,152.41,152.37,6.5604]
[1745838370867,19.72,152.47,152.37,6.5604]
[1745838371067,6.5592,152.41,152.37,6.5604]
[1745838371264,19.72,152.46,152.36,6.5609]
[1745838371572,6.56,152.39,152.32,3.9025]
[1745838372372,6.56,152.39,152.36,6.5609]
[1745838372574,6.56,152.39,152.32,3.9025]
[1745838373072,6.56,152.39,152.35,6.5612]
[1745838373273,6.5604,152.38,152.35,6.5612]
[1745838373468,19.72,152.45,152.29,2.0249]
[1745838373668,19.72,152.43,152.29,45.77802]
[1745838373871,6.5606,152.37,152.29,45.77802]
[1745838374071,23.6933,152.42,152.29,45.77802]
[1745838374366,6.561,152.37,152.29,45.77802]
[1745838374673,3.9733,152.42,152.29,45.77802]
[1745838374869,4.4538079,152.41,152.3,1.8873]
[1745838375069,11.0133079,152.4,152.37,6.5603]
[1745838375370,3.9733,152.42,152.3,1.8873]
[1745838375672,4.45305241,152.41,152.31,2.0473]
[1745838375874,4.45305241,152.4,152.36,6.561]
[1745838376170,3.9733,152.42,152.31,2.0473]
[1745838376367,4.45307237,152.41,152.29,45.77802]
[1745838376671,4.45307237,152.4,152.29,45.77802]
[1745838376866,4.45307237,152.39,152.32,6.5628]
[1745838377067,4.45307237,152.38,152.32,6.5628]
[1745838377264,4.45304427,152.37,152.32,6.5628]
[1745838377468,23.6933,152.42,152.33,6.5623]
[1745838377672,6.5609,152.37,152.33,6.5623]
[1745838377864,6.5609,152.37,152.34,6.9]
[1745838378070,23.6933,152.42,152.34,6.9]
[1745838378266,6.5613,152.36,152.34,6.9]
[1745838378876,6.5615,152.35,152.34,6.9]
[1745838379176,23.6933,152.42,152.34,6.9]
[1745838379379,6.5609,152.37,152.34,13.4617]
[1745838379876,3.9733,152.42,152.34,13.4617]
[1745838380177,4.45362237,152.41,152.34,6.9]
[1745838380379,4.45362237,152.4,152.34,6.9]
[1745838380577,4.45362237,152.39,152.34,13.4619]
[1745838380778,4.45362237,152.38,152.34,6.9]
[1745838380982,6.56,152.39,152.34,6.9]
[1745838381180,4.45326275,152.38,152.34,6.9]
[1745838381376,6.56,152.39,152.34,6.9]
[1745838381876,6.5595,152.4,152.34,6.9]
[1745838382080,4.45308592,152.39,152.34,6.9]
[1745838382274,3.9733,152.42,152.37,6.5604]
[1745838382477,6.5596,152.4,152.37,6.5604]
[1745838382678,4.45323667,152.39,152.37,6.5604]
[1745838382980,6.5596,152.4,152.34,6.9]
[1745838383179,4.45291866,152.39,152.34,6.9]
[1745838383382,6.5598,152.39,152.36,6.561]
[1745838383575,3.9733,152.42,152.36,6.561]
[1745838383871,4.4527916,152.41,152.36,6.561]
[1745838384179,3.9733,152.42,152.36,6.561]
[1745838384180,4.4527916,152.4,152.36,6.561]
[1745838384381,4.4527916,152.39,152.36,6.561]
[1745838384681,3.9733,152.42,152.37,6.5604]
[1745838384881,4.45202151,152.41,152.37,6.5604]
[1745838385178,4.45202151,152.41,152.34,6.9]
[1745838385179,4.45202151,152.4,152.34,6.9]
[1745838385370,3.9733,152.42,152.34,6.9]
[1745838385574,6.5598,152.39,152.36,6.5608]
[1745838386175,3.9733,152.42,152.36,6.5609]
[1745838386382,4.45199515,152.41,152.34,6.9]
[1745838386582,4.45199515,152.4,152.35,6.5612]
[1745838386792,3.9733,152.42,152.34,6.9]
[1745838387081,4.4517462,152.41,152.34,6.9]
[1745838387379,3.9733,152.42,152.34,6.9]
[1745838387380,4.4517462,152.4,152.34,6.9]
[1745838387585,3.9733,152.42,152.34,6.9]
[1745838387887,4.4515374,152.41,152.34,6.9]
[1745838388183,1.971,152.42,152.35,1.9818]
[1745838388385,4.45141434,152.41,152.35,1.9818]
[1745838388588,2.0731,152.49,152.35,1.9818]
[1745838388783,19.72,152.47,152.35,1.9818]
[1745838389084,24.17100959,152.46,152.37,6.5603]
[1745838389284,4.45100959,152.45,152.37,6.5603]
[1745838389585,6.5597,152.4,152.37,6.5603]
[1745838389883,19.72,152.46,152.35,1.9818]
[1745838390082,4.45004052,152.45,152.35,1.9818]
[1745838390276,4.45004052,152.44,152.35,1.9818]
[1745838390480,4.45004052,152.43,152.35,1.9818]
[1745838390686,6.5596,152.4,152.37,6.5604]
[1745838390886,19.72,152.46,152.35,1.9818]
[1745838391186,6.5603,152.38,152.36,6.5608]
[1745838391376,6.5603,152.38,152.35,1.9818]
[1745838391688,6.5607,152.37,152.35,8.5431]
[1745838391889,19.72,152.45,152.35,8.5431]
[1745838392189,6.5602,152.38,152.36,6.5608]
[1745838392391,19.72,152.46,152.35,1.9818]
[1745838392586,19.72,152.44,152.35,1.9818]
[1745838392787,6.5615,152.35,152.34,6.9]
[1745838393489,11.01941767,152.35,152.34,6.9]
[1745838393691,6.5635,152.31,152.29,43.75312]
[1745838394191,6.5635,152.31,152.29,50.31712]
[1745838394386,19.72,152.4,152.29,43.75312]
[1745838394592,19.72,152.38,152.31,6.5632]
[1745838394892,4.45993885,152.37,152.29,43.75312]
[1745838395189,6.5617,152.35,152.32,6.5625]
[1745838395389,4.45993885,152.34,152.29,43.75312]
[1745838395595,6.5608,152.37,152.29,43.75312]
[1745838395786,4.45971001,152.36,152.33,6.562]
[1745838395980,4.45971001,152.35,152.33,6.562]
[1745838396182,6.5612,152.36,152.29,43.75312]
[1745838396491,1.9472,152.41,152.29,43.75312]
[1745838396688,6.5617,152.35,152.29,43.75312]
[1745838396888,1.9472,152.41,152.29,43.75312]
[1745838397192,6.5625,152.33,152.29,43.75312]
[1745838397593,19.72,152.4,152.29,50.31692]
[1745838397788,24.18214292,152.39,152.29,50.31692]
[1745838397989,6.5627,152.33,152.3,6.5636]
[1745838398188,19.72,152.39,152.29,43.75312]
[1745838398389,2.0506,152.37,152.29,43.75312]
[1745838398588,4.46224986,152.36,152.29,43.75312]
[1745838398789,4.46224986,152.35,152.29,50.31692]
[1745838398991,6.5632,152.32,152.29,50.31692]
[1745838399891,6.5625,152.33,152.3,6.5635]
[1745838400087,6.5625,152.33,152.29,43.75312]
[1745838400385,6.5629,152.32,152.3,6.5634]
[1745838400888,2.0506,152.37,152.3,6.5634]
[1745838401089,4.46418653,152.36,152.29,43.75312]
[1745838401280,4.4651755,152.35,152.29,43.75312]